bitfinex/quotes_ETHUSD_20241129
["timestamp","ask_amount","ask_price","bid_price","bid_amount"]
[1732850285768,3.0,3588.2,3587.4,0.8155]
[1732850285769,2.05509216,3588.0,3587.4,0.8155]
[1732850285968,3.04815847,3587.9,3587.7,0.07763019]
[1732850286177,0.26094847,3587.8,3587.4,0.8155]
[1732850286470,0.26094847,3587.7,3587.4,0.8155]
[1732850286794,0.26094847,3587.6,3587.5,3.60295]
[1732850286996,0.26098968,3588.0,3587.8,0.8155]
[1732850287307,0.26098968,3587.9,3587.8,0.8155]
[1732850288005,0.6784994,3587.9,3587.8,0.8155]
[1732850289504,2.78677,3588.4,3587.8,0.8155]
[1732850289809,0.67901345,3588.3,3587.8,0.8155]
[1732850290014,0.67901345,3588.2,3587.8,0.8155]
[1732850290223,0.67901345,3588.1,3587.8,0.8155]
[1732850290543,0.67901345,3588.0,3587.8,0.8155]
[1732850290833,0.67901345,3587.9,3587.8,0.8155]
[1732850291917,0.67901345,3587.9,3587.8,3.60272]
[1732850292946,4.16617101,3588.5,3587.8,0.8155]
[1732850293131,0.26123351,3587.9,3587.8,0.8155]
[1732850293304,0.67920713,3587.9,3587.8,0.8155]
[1732850294614,0.67920713,3587.9,3587.8,3.60272]
[1732850295139,0.67920713,3587.9,3587.8,0.8155]
[1732850295448,0.67920713,3587.9,3587.6,3.60601]
[1732850295640,0.26123351,3587.8,3587.7,2.7873]
[1732850295839,0.26123351,3587.8,3587.7,3.45450113]
[1732850296209,0.26123351,3587.8,3587.7,3.426631]
[1732850296416,7.3882402,3588.5,3587.7,3.426631]
[1732850296417,1.60152188,3588.5,3587.8,3.61915]
[1732850296612,0.67914445,3588.4,3588.0,2.78705]
[1732850296849,0.67914445,3588.3,3588.0,2.78705]
[1732850297157,0.67914445,3588.2,3587.8,0.832]
[1732850297317,0.67914445,3588.1,3587.9,2.78714]
[1732850297517,0.67914445,3588.0,3587.9,2.78714]
[1732850298661,0.67914445,3588.0,3587.8,0.832]
[1732850298813,0.43535087,3588.5,3587.0,0.1]
[1732850298814,0.26120944,3587.9,3587.5,3.54455]
[1732850299017,0.26120944,3587.8,3587.5,3.54455]
[1732850299239,3.60524,3588.3,3587.5,3.54455]
[1732850299240,0.26120944,3587.7,3587.5,3.54455]
[1732850299453,0.26120944,3587.6,3587.5,3.54455]
[1732850299872,1.07960944,3587.6,3587.5,0.07742291]
[1732850300053,7.28491018,3587.6,3587.5,0.07742291]
[1732850300231,2.78757,3587.4,3586.7,0.7571]
[1732850300551,0.67914018,3587.3,3586.7,3.54513]
[1732850300722,0.8184,3587.1,3586.8,0.07489258]
[1732850300921,0.67914018,3587.0,3586.8,0.07489258]
[1732850301155,0.67914018,3586.9,3586.5,2.78815]
[1732850301450,0.67914018,3586.9,3579.0,8.0]
[1732850301451,0.67899836,3586.8,3586.1,3.54823]
[1732850301658,2.93769402,3586.9,3586.1,3.54823]
[1732850301659,0.67899836,3586.7,3586.1,3.54823]
[1732850301817,0.67901475,3586.6,3586.1,0.7597]
[1732850302018,0.26120944,3586.5,3586.1,3.54819]
[1732850302322,0.4175367,3586.8,3586.3,2.78831]
[1732850302519,0.26093208,3586.7,3586.3,0.02788045]
[1732850302760,0.26093208,3586.6,3586.4,2.7883]
[1732850302948,3.8184,3587.1,3586.4,2.7883]
[1732850302949,0.4175367,3587.0,3586.4,2.7883]
[1732850303117,0.26092533,3586.9,3586.5,2.78819]
[1732850303319,3.0,3587.4,3586.7,2.78802]
[1732850303320,0.26083405,3586.8,3586.7,2.78802]
[1732850303552,0.26083405,3586.8,3586.6,0.7597]
[1732850303730,0.7755,3587.4,3586.8,2.78799]
[1732850303731,0.41733448,3587.1,3586.8,2.78799]
[1732850303959,0.7755,3587.4,3586.8,2.78799]
[1732850303960,0.2608219,3587.0,3586.8,2.78799]
[1732850304157,0.2608219,3587.0,3586.6,0.7597]
[1732850304158,0.2608219,3586.9,3586.6,0.7597]
[1732850304369,0.2608219,3586.8,3586.6,3.54783]
[1732850304553,0.41733448,3587.3,3586.6,3.54783]
[1732850304753,1.37613551,3587.2,3586.6,3.54783]
[1732850304966,0.26077058,3587.1,3586.6,3.54783]
[1732850305292,0.26077058,3587.0,3586.6,3.54783]
[1732850305499,0.26077058,3586.9,3586.6,3.54783]
[1732850305789,3.41733448,3587.3,3586.6,3.54783]
[1732850305952,0.26071499,3587.2,3586.6,0.7597]
[1732850306151,0.26071499,3587.1,3587.0,2.78782]
[1732850306372,0.26066492,3587.5,3587.2,0.7597]
[1732850306692,0.26066492,3587.4,3587.3,2.7876]
[1732850307075,0.26066492,3587.7,3587.3,2.7876]
[1732850307265,0.6779994,3587.6,3587.3,2.7876]
[1732850307464,0.26066492,3587.5,3587.4,2.81540401]
[1732850307686,0.26066492,3587.5,3587.4,2.78753]
[1732850308007,0.26066492,3587.5,3587.3,2.7876]
[1732850308180,0.26066492,3587.4,3587.3,2.7876]
[1732850308581,0.26066492,3587.4,3587.3,3.421105]
[1732850308921,0.41733448,3588.0,3587.6,2.78734]
[1732850309198,0.67795078,3587.9,3587.6,2.78734]
[1732850309408,0.67795078,3587.8,3587.6,2.78734]
[1732850309565,0.2606163,3587.7,3587.6,2.78734]
[1732850309765,0.2606163,3587.7,3587.4,2.78751]
[1732850309966,0.2606163,3587.6,3587.5,2.78742]
[1732850313585,0.26066367,3587.6,3587.5,2.78742]
[1732850313913,0.7755,3588.2,3587.7,2.78729]
[1732850314209,0.41706137,3588.1,3587.4,2.78751]
[1732850314415,0.67772473,3588.0,3587.4,2.78746]
[1732850314592,0.67772473,3587.9,3587.5,2.78743]
[1732850314794,0.67772473,3587.8,3587.5,2.86017307]
[1732850314997,0.26066336,3587.7,3587.5,2.86017307]
[1732850315220,0.26066336,3587.6,3587.5,2.86017307]
[1732850316099,0.26066336,3587.6,3587.5,4.27862138]
[1732850316801,0.41706137,3588.1,3587.9,2.78713]
[1732850316988,0.67771233,3588.0,3587.9,2.78713]
[1732850317171,0.26065096,3588.0,3587.9,2.78713]
[1732850317371,0.67771233,3588.0,3587.9,2.78713]
[1732850317819,0.26065096,3588.0,3587.9,2.78713]
[1732850317975,0.26065069,3588.0,3587.9,2.78713]
[1732850319397,0.6776918,3588.0,3587.9,2.78713]
[1732850319582,0.26065069,3588.0,3587.9,2.78713]
[1732850320402,0.26065069,3588.0,3587.9,3.56483]
[1732850320598,0.26065069,3588.0,3587.9,4.200041]
[1732850321817,0.26065069,3588.0,3587.7,2.78728]
[1732850321970,1.4674918,3587.9,3587.2,2.78761]
[1732850322170,1.4674918,3587.9,3586.8,0.7953]
[1732850322171,0.6776918,3587.8,3586.8,0.7953]
[1732850322484,0.6776918,3587.7,3587.1,2.7877]
[1732850322687,0.6776918,3587.6,3587.1,2.7877]
[1732850322920,0.6776918,3587.5,3587.2,0.06996768]
[1732850323120,1.4577918,3587.4,3586.9,2.78784]
[1732850323289,0.6776918,3587.3,3586.9,2.78784]
[1732850323495,0.6776918,3587.2,3587.0,0.06739564]
[1732850323692,0.6776918,3587.2,3586.9,2.78784]
[1732850323693,0.26065069,3587.1,3586.9,2.78784]
[1732850324123,0.26065069,3587.0,3586.9,2.78784]
[1732850324489,0.26065069,3587.0,3586.9,2.8552405]
[1732850326205,0.6776918,3587.0,3586.9,0.0674005]
[1732850326407,0.26065069,3587.0,3586.7,2.78806]
[1732850326609,0.26065069,3586.9,3586.7,2.78806]
[1732850326808,0.26065069,3586.8,3586.6,2.78815]
[1732850327005,0.26065069,3586.7,3586.6,3.146555]
[1732850327322,0.41710368,3587.3,3586.6,3.146555]
[1732850327524,0.41710368,3587.3,3586.6,0.358405]
[1732850327728,0.417095,3587.2,3586.9,2.78785]
[1732850327888,0.417095,3587.3,3586.9,2.78785]
[1732850328088,0.26068437,3587.2,3586.9,2.78785]
[1732850328396,0.26068437,3587.1,3587.0,2.78783]
[1732850329797,0.26068437,3587.1,3587.0,3.62022564]
[1732850329994,0.26068437,3587.1,3587.0,4.2610462]
[1732850331018,0.417095,3587.8,3587.4,2.78748]
[1732850331326,0.67781081,3587.7,3587.4,2.78748]
[1732850331629,0.67781081,3587.6,3587.5,0.06737136]
[1732850332287,0.67781081,3587.6,3587.5,2.85482136]
[1732850332620,0.67781081,3587.6,3587.5,3.4190715]
[1732850332927,0.26071581,3587.6,3587.5,3.4190715]
[1732850333927,0.26071581,3587.6,3587.5,4.1751715]
[1732850334099,0.7774,3588.2,3587.5,4.1751715]
[1732850334100,0.41728118,3587.8,3587.7,2.78723]
[1732850334422,0.67807953,3587.8,3587.7,2.85492137]
[1732850334600,0.26079835,3587.8,3587.7,2.85492137]
[1732850335216,0.67807953,3587.8,3587.7,2.85492137]
[1732850335393,0.26079835,3587.8,3587.7,2.85492137]
[1732850336226,0.67807953,3587.8,3587.7,0.06769137]
[1732850336412,0.67807953,3587.8,3587.6,2.7873]
[1732850336617,0.67807953,3587.7,3587.6,2.7873]
[1732850336924,0.26079835,3587.7,3587.6,2.7873]
[1732850337427,0.7774,3588.2,3587.4,2.78751]
[1732850337635,0.67821141,3587.7,3587.5,2.78745]
[1732850337945,0.7658,3587.5,3587.1,2.78775]
[1732850338110,0.67821141,3587.4,3586.9,2.78785]
[1732850338434,0.67821141,3587.3,3586.9,2.78785]
[1732850338638,0.67821141,3587.2,3586.9,2.78785]
[1732850338800,0.67821141,3587.1,3586.7,2.78807]
[1732850338996,0.67821141,3587.0,3586.9,2.78792]
[1732850339317,0.26085054,3587.0,3586.7,2.78806]
[1732850339521,0.26085054,3586.9,3586.7,2.78806]
[1732850339731,0.26085054,3586.8,3586.7,2.78806]
[1732850340899,0.26085054,3586.8,3586.7,4.247204]
[1732850341140,0.26085551,3586.8,3586.7,1.459144]
[1732850341389,0.26085551,3586.8,3586.7,4.247214]
[1732850341526,0.26085551,3586.8,3586.7,2.78807]
[1732850343503,0.26079933,3586.8,3586.7,2.78807]
[1732850344052,0.7722,3587.1,3586.7,2.78807]
[1732850344936,0.26078897,3586.8,3586.7,2.78807]
[1732850345151,0.52158113,3586.8,3586.7,2.78807]
[1732850345510,0.26078897,3586.8,3586.7,2.78807]
[1732850346551,0.52156671,3586.8,3586.7,2.78807]
[1732850347049,0.52156671,3586.8,3586.7,4.165199]
[1732850347412,0.41723175,3587.5,3586.7,4.165159]
[1732850347613,0.67799813,3587.4,3586.9,2.78789]
[1732850347842,0.67799813,3587.4,3586.7,3.60753]
[1732850347843,0.67799813,3587.3,3586.7,0.8195]
[1732850348022,0.67799813,3587.2,3587.0,2.78777]
[1732850348221,0.67799813,3587.1,3587.0,2.78777]
[1732850348414,0.26076638,3587.1,3587.0,2.78777]
[1732850348617,0.26076638,3587.1,3586.8,2.78799]
[1732850348878,0.26076638,3587.0,3586.6,2.78814]
[1732850349049,0.67799813,3586.9,3586.6,2.78812]
[1732850349222,0.26076638,3586.8,3586.6,2.78812]
[1732850349547,0.26076638,3586.7,3586.6,2.78812]
[1732850350838,0.67813832,3586.7,3586.2,2.7884]
[1732850351041,4.27707625,3586.6,3585.6,0.7978]
[1732850351255,0.67815625,3586.5,3585.8,2.78877]
[1732850351561,3.59892,3586.6,3585.8,2.78877]
[1732850351562,0.67815625,3586.4,3585.8,2.78877]
[1732850351715,0.67815625,3586.3,3585.8,2.78877]
[1732850352045,0.8095,3586.1,3585.9,0.06822826]
[1732850352254,0.26076638,3586.0,3585.9,0.06822826]
[1732850352419,0.26076638,3586.0,3585.6,2.78891]
[1732850352614,0.26076638,3585.9,3585.6,2.78891]
[1732850352848,0.26076651,3585.8,3585.6,2.78891]
[1732850353052,1.22672642,3586.1,3585.6,2.78891]
[1732850353253,0.26063352,3586.0,3585.6,2.78891]
[1732850353429,0.26063352,3585.9,3585.6,2.78891]
[1732850353625,0.26063352,3585.8,3585.6,2.78891]
[1732850353949,0.8095,3586.1,3585.6,2.78891]
[1732850354114,0.26063969,3586.0,3585.6,2.78891]
[1732850354315,0.26063969,3585.9,3585.6,2.78891]
[1732850354534,0.26063969,3585.8,3585.6,2.78891]
[1732850354754,0.26063969,3586.0,3585.6,2.78891]
[1732850355054,0.26063969,3585.9,3585.6,2.78891]
[1732850355355,0.26063969,3586.0,3585.6,2.78891]
[1732850355552,0.26063969,3585.9,3585.7,2.78882]
[1732850355747,0.26063969,3586.0,3585.7,2.78882]
[1732850355958,0.26063969,3585.9,3585.7,2.78882]
[1732850356117,0.8095,3586.1,3585.7,2.78882]
[1732850356118,0.26063969,3586.0,3585.7,2.78882]
[1732850356317,0.8095,3586.1,3585.7,2.78882]
[1732850356518,0.2603381,3585.9,3585.7,2.78882]
[1732850356757,0.8095,3586.1,3585.7,2.78882]
[1732850356933,0.26033669,3586.0,3585.7,2.78882]
[1732850358231,0.8095,3586.1,3585.7,2.78882]
[1732850358428,0.41653871,3586.6,3585.8,0.8159]
[1732850358429,0.26033669,3586.3,3585.8,0.8159]
[1732850358634,0.26033669,3586.2,3585.9,2.78869]
[1732850358865,0.26033669,3586.5,3585.9,2.85742286]
[1732850359187,0.98703223,3586.4,3585.9,2.85742286]
[1732850359460,0.26033669,3586.3,3585.9,2.85742286]
[1732850359659,0.26033669,3586.2,3585.9,2.85742286]
[1732850359871,0.26033669,3586.3,3586.1,2.78854]
[1732850360063,0.26033669,3586.5,3586.2,3.60436]
[1732850360292,0.26033669,3586.5,3586.2,2.85711828]
[1732850360489,0.26033669,3586.8,3586.2,2.85711828]
[1732850360784,0.26033669,3586.7,3586.3,2.78838]
[1732850361094,0.26033669,3586.6,3586.4,0.06870856]
[1732850361382,0.26033669,3586.8,3586.3,2.78838]
[1732850361585,0.26033669,3586.7,3586.5,0.06870371]
[1732850361891,0.26033669,3586.6,3586.3,2.78838]
[1732850362085,0.26033669,3586.8,3586.3,2.78838]
[1732850362391,0.26033669,3586.7,3586.5,2.78821]
[1732850362587,0.802,3586.9,3586.5,2.78821]
[1732850362588,0.26033669,3586.6,3586.5,2.78821]
[1732850362797,0.26033669,3586.8,3586.5,3.882931]
[1732850363085,0.26033669,3587.0,3586.5,3.882931]
[1732850363399,0.802,3587.3,3586.8,2.78796]
[1732850363400,0.26033669,3586.9,3586.8,2.78796]
[1732850363580,0.26033669,3587.2,3586.5,3.882931]
[1732850363787,0.26033669,3587.1,3586.6,2.78815]
[1732850363958,0.26033669,3587.0,3586.6,2.78815]
[1732850364295,0.26033669,3586.9,3586.6,5.5763]
[1732850364453,0.26033669,3586.8,3586.6,2.78815]
[1732850364647,0.26033669,3586.7,3586.6,2.78815]
[1732850364852,0.26033669,3587.1,3586.6,2.78815]
[1732850365072,0.26033669,3587.0,3586.6,2.78815]
[1732850365289,0.26033669,3586.9,3586.6,2.78815]
[1732850365450,0.43066631,3587.2,3586.6,2.78815]
[1732850365451,0.26033669,3586.8,3586.6,2.78815]
[1732850365651,0.26033669,3586.7,3586.6,2.78815]
[1732850366147,0.802,3587.3,3586.7,2.78806]
[1732850366148,0.41653871,3587.1,3586.7,2.78806]
[1732850366401,0.26050622,3587.0,3586.7,2.78806]
[1732850366589,0.26050622,3586.9,3586.7,2.78806]
[1732850366897,0.26050623,3586.8,3586.7,2.78806]
[1732850367963,0.26050623,3586.8,3586.7,3.57036]
[1732850368207,0.26050623,3586.8,3586.7,4.20900589]
[1732850369066,0.41680997,3587.4,3587.0,2.78784]
[1732850369274,2.33296187,3588.5,3588.0,2.78706]
[1732850369275,0.41680997,3588.1,3588.0,2.78706]
[1732850369577,0.8047,3588.7,3587.4,0.7823]
[1732850369578,0.41680997,3588.6,3588.1,2.78696]
[1732850369805,0.41680997,3588.5,3588.2,2.7869]
[1732850370024,0.41680997,3588.6,3587.6,0.02786664]
[1732850370163,0.41680997,3588.9,3588.5,2.78667]
[1732850370366,0.8047,3589.0,3588.6,2.78658]
[1732850370766,0.8047,3589.0,3588.7,2.7865]
[1732850371368,0.8047,3589.3,3588.8,2.78643]
[1732850371977,0.8047,3589.3,3588.9,2.78635]
[1732850372877,0.38047,3589.2,3588.7,2.7865]
[1732850373195,0.38047,3589.2,3588.5,2.78661]
[1732850373397,0.38047,3589.2,3588.5,2.78662]
[1732850373569,0.41641621,3589.5,3588.9,2.78629]
[1732850373768,0.8047,3589.6,3589.1,2.7862]
[1732850374270,3.95158101,3590.2,3589.1,2.7862]
[1732850374271,0.7895,3589.8,3589.1,2.78621]
[1732850374668,0.7895,3589.8,3589.2,0.06740219]
[1732850378420,0.7895,3589.8,3589.2,2.85352219]
[1732850378726,0.37895,3589.7,3589.2,2.85352219]
[1732850379021,0.7895,3589.8,3589.2,2.85346219]
[1732850379219,0.7895,3589.8,3589.4,2.7859]
[1732850379714,0.7895,3589.8,3589.5,0.06656997]
[1732850380408,0.7895,3589.8,3589.3,2.78604]
[1732850380617,0.7895,3589.8,3589.6,0.0665522]
[1732850380782,1.16845,3589.8,3589.3,2.78604]
[1732850381416,1.16845,3589.8,3589.4,0.0665619]
[1732850382478,0.7895,3589.8,3589.4,0.0665619]
[1732850382690,3.8133,3590.2,3589.4,0.0665619]
[1732850382896,3.8133,3590.2,3589.6,2.78575]
[1732850383304,3.8133,3590.2,3589.7,0.06654735]
[1732850383937,3.36201535,3589.9,3589.7,0.06654735]
[1732850384131,3.36201535,3589.9,3588.9,2.78636]
[1732850384132,2.78576,3589.7,3588.9,2.78636]
[1732850384604,0.8133,3589.8,3589.1,2.78621]
[1732850385912,0.8133,3589.8,3588.8,2.78643]
[1732850385913,0.8133,3589.8,3588.4,1.36784457]
[1732850386110,3.59913,3589.6,3588.8,2.78643]
[1732850386309,0.0141276,3589.5,3588.8,2.78643]
[1732850386830,0.0141276,3589.5,3588.9,2.78633]
[1732850387531,0.8133,3589.6,3589.1,2.78618]
[1732850387937,0.8133,3589.6,3588.9,2.78633]
[1732850388232,0.8133,3589.6,3589.2,2.78613]
[1732850389703,0.8133,3589.6,3589.3,0.06641174]
[1732850390137,0.8133,3589.6,3589.2,2.78613]
[1732850390319,0.8133,3589.6,3589.4,0.06640689]
[1732850390610,0.8133,3589.6,3589.2,2.78613]
[1732850390811,0.8133,3589.6,3589.5,0.06640204]
[1732850390994,0.8133,3589.6,3589.2,2.78613]
[1732850391198,0.8133,3589.6,3589.5,0.06640204]
[1732850391639,0.8133,3589.6,3589.0,2.78627]
[1732850391820,0.8133,3589.6,3589.5,0.06640204]
[1732850392025,1.45396578,3589.6,3589.0,2.78627]
[1732850392195,0.8133,3589.6,3589.5,0.06640204]
[1732850392402,0.8133,3589.6,3589.0,2.78627]
[1732850392610,0.8133,3589.6,3589.5,0.06640204]
[1732850392841,0.8133,3589.6,3588.9,2.78629]
[1732850393006,1.07226243,3589.6,3589.5,0.06640204]
[1732850393207,1.75443103,3589.6,3588.9,2.78629]
[1732850393420,1.75443103,3589.6,3589.5,0.06640204]
[1732850393615,4.55437863,3589.6,3588.8,2.78644]
[1732850393992,3.0,3589.4,3588.5,2.78662]
[1732850394255,0.27309003,3589.3,3588.6,2.78657]
[1732850394807,0.8057,3589.2,3588.6,2.78657]
[1732850395041,0.0141276,3589.1,3588.2,2.78687]
[1732850395244,0.8057,3589.2,3588.4,2.78669]
[1732850395245,3.85086243,3589.2,3588.4,2.78669]
[1732850395541,0.27309003,3589.1,3588.4,2.78669]
[1732850396435,0.25896243,3589.0,3588.4,2.78669]
[1732850397242,0.25896243,3588.9,3588.4,2.78669]
[1732850397442,0.25896243,3588.8,3588.4,2.78669]
[1732850397637,0.26034118,3588.7,3588.4,2.78669]
[1732850397842,0.26034118,3589.0,3588.4,2.78669]
[1732850398140,0.26033991,3588.9,3588.4,2.78669]
[1732850398503,0.26033991,3588.8,3588.4,2.78669]
[1732850398733,0.26033991,3588.7,3588.2,3.56394]
[1732850398938,0.26033991,3588.6,3588.2,2.78684]
[1732850399145,1.03443991,3588.5,3587.9,3.6118]
[1732850399349,0.26033991,3588.4,3588.0,2.78704]
[1732850399513,0.26033991,3588.3,3588.0,2.78704]
[1732850399716,0.26033991,3588.2,3588.0,2.78704]
[1732850399914,0.26033991,3588.1,3587.7,1.08172466]
[1732850400114,0.41654386,3588.4,3588.1,2.78696]
[1732850400352,0.26101577,3588.3,3588.1,2.78696]
[1732850400539,0.26101577,3588.2,3588.1,5.57392]
[1732850400921,0.41654386,3588.7,3588.4,2.78672]
[1732850401119,0.833,3588.8,3588.1,2.78696]
[1732850401120,0.67754843,3588.6,3588.1,2.78696]
[1732850401319,0.833,3588.8,3587.7,0.8002]
[1732850401320,0.67754843,3588.5,3587.8,2.78722]
[1732850401530,0.8471276,3588.8,3587.7,0.8002]
[1732850401531,0.26100457,3588.4,3588.2,2.78688]
[1732850401730,0.26100457,3588.3,3588.2,2.78688]
[1732850402864,0.26100457,3588.3,3588.2,3.55638]
[1732850403232,0.41654386,3588.9,3588.2,3.55638]
[1732850403430,0.67836371,3588.8,3588.4,2.78675]
[1732850403668,0.67836371,3588.7,3588.4,2.78675]
[1732850403870,0.26090912,3588.6,3588.4,2.78675]
[1732850404170,0.26090912,3588.5,3588.4,2.78675]
[1732850404732,0.26090912,3588.5,3588.4,3.51574982]
[1732850404987,0.26090912,3588.5,3588.4,3.48788339]
[1732850406870,0.8112,3589.1,3588.6,2.78654]
[1732850407173,0.8112,3589.1,3588.4,3.48788339]
[1732850407174,0.69238818,3589.0,3588.7,0.06680584]
[1732850407466,0.7988,3588.8,3588.2,2.78688]
[1732850407680,0.0141276,3588.7,3587.8,2.78715]
[1732850407827,5.78675,3588.4,3588.3,0.06678325]
[1732850408033,9.83279192,3588.4,3588.3,0.06678325]
[1732850408280,0.8049,3588.2,3587.0,2.7878]
[1732850408435,3.59222,3587.7,3586.9,2.78791]
[1732850408635,0.26088422,3587.6,3587.0,2.78782]
[1732850408830,0.26088422,3587.5,3587.3,2.78753]
[1732850409114,0.26088422,3587.5,3587.3,3.066283]
[1732850409312,0.8049,3587.7,3587.3,3.066283]
[1732850409313,0.26076554,3587.6,3587.3,3.066283]
[1732850409608,0.8049,3587.7,3587.4,2.78751]
[1732850409816,0.26075953,3587.6,3587.3,2.78753]
[1732850410106,3.41741475,3588.0,3587.3,2.78753]
[1732850410296,0.26063688,3587.9,3587.4,2.78752]
[1732850410487,0.26063688,3587.8,3587.4,2.78752]
[1732850410717,0.26063688,3587.7,3587.2,2.78766]
[1732850410877,0.26063688,3587.6,3587.3,2.78757]
[1732850411075,0.26063688,3587.9,3587.3,2.78754]
[1732850411316,4.24921475,3588.0,3587.3,2.78754]
[1732850411317,0.26063688,3587.8,3587.3,2.78754]
[1732850411683,0.26063688,3587.7,3587.3,2.78754]
[1732850411895,0.26063688,3587.6,3587.3,2.78754]
[1732850412076,0.26063688,3587.8,3587.3,2.78754]
[1732850412277,0.26063688,3587.7,3587.3,2.78754]
[1732850412517,3.41741475,3587.9,3587.3,2.78754]
[1732850412518,0.26063688,3587.8,3587.3,2.78754]
[1732850412832,0.26063688,3587.7,3587.3,2.78754]
[1732850412972,0.26063688,3587.8,3587.3,2.78754]
[1732850413519,0.26063688,3587.9,3587.3,2.78754]
[1732850413677,0.26063688,3587.8,3587.5,2.78738]
[1732850413878,0.26063688,3587.9,3587.5,2.78738]
[1732850414084,0.26063688,3587.9,3587.6,0.06715652]
[1732850415081,0.26063688,3587.9,3587.6,2.85450652]
[1732850415433,0.8318,3588.0,3587.6,2.85450652]
[1732850415585,1.09243688,3588.0,3587.6,2.85450652]
[1732850415898,0.8318,3588.0,3587.6,2.85450652]
[1732850416233,1.09243688,3588.0,3587.6,2.85450652]
[1732850416427,0.26063688,3588.1,3587.7,2.78723]
[1732850416647,0.26063688,3588.1,3587.8,2.78721]
[1732850416851,0.26063688,3588.2,3587.8,2.85435681]
[1732850417349,0.26063688,3588.1,3587.8,2.85435681]
[1732850417548,0.26063688,3588.0,3587.8,2.85435681]
[1732850417713,0.26063688,3587.9,3587.8,2.85435681]
[1732850418020,0.26036314,3587.9,3587.8,2.85435681]
[1732850419244,0.26036314,3588.2,3588.0,3.55389]
[1732850419465,0.26039724,3588.5,3588.4,2.78675]
[1732850419634,0.26039724,3588.5,3588.1,2.85429992]
[1732850419635,1.02359724,3588.5,3588.1,2.85429992]
[1732850419836,0.7632,3588.5,3588.4,0.06729536]
[1732850420152,0.26039566,3588.5,3588.4,0.06729536]
[1732850420475,0.26039566,3588.5,3588.2,3.55379]
[1732850420629,0.7632,3588.8,3588.4,0.06729536]
[1732850420823,0.7632,3588.8,3588.2,3.55379]
[1732850420824,0.26043918,3588.7,3588.3,0.06730021]
[1732850421035,0.26043918,3588.6,3588.5,0.0672905]
[1732850421232,0.7632,3588.8,3588.4,0.06729536]
[1732850421437,0.26049567,3588.7,3588.5,0.0672905]
[1732850421662,0.26049567,3588.6,3588.5,0.0672905]
[1732850421867,0.26049567,3588.6,3588.2,3.55379]
[1732850422021,1.17999308,3588.8,3588.5,0.0672905]
[1732850422226,1.17999308,3588.8,3588.2,0.7669]
[1732850422227,0.67743317,3588.7,3588.2,0.7669]
[1732850422453,6.50922032,3588.7,3588.6,0.06728565]
[1732850422628,4.40017268,3588.7,3587.8,2.7872]
[1732850422825,0.67747236,3588.6,3588.0,2.78705]
[1732850423029,0.2605698,3588.5,3588.1,2.78697]
[1732850423336,0.2605698,3588.4,3588.1,2.85410543]
[1732850423552,0.2605698,3588.3,3588.1,2.85410543]
[1732850423741,0.2605698,3588.2,3588.1,2.85410543]
[1732850423936,0.2605698,3588.2,3588.1,0.06713543]
[1732850424157,0.2605698,3588.2,3587.9,2.78711]
[1732850424361,0.2605698,3588.1,3587.9,2.78711]
[1732850424683,0.41690256,3588.6,3587.9,2.78711]
[1732850424845,0.67756378,3588.5,3587.9,2.78711]
[1732850425046,0.67756378,3588.5,3587.5,0.8269]
[1732850425047,5.78654,3588.7,3588.0,2.78706]
[1732850425275,0.41705187,3588.4,3588.0,2.78706]
[1732850425582,0.26065742,3588.3,3587.8,2.78719]
[1732850425894,2.7866,3588.6,3587.7,2.78729]
[1732850425895,0.26065742,3588.2,3587.9,2.78714]
[1732850426048,0.26065742,3588.1,3588.0,2.78706]
[1732850426946,0.41705187,3588.6,3587.9,0.58531165]
[1732850427164,0.67774487,3588.5,3587.9,2.78712]
[1732850427351,0.67774487,3588.4,3587.8,2.78721]
[1732850427546,0.67774487,3588.3,3588.0,2.78706]
[1732850427877,0.260693,3588.2,3588.1,2.78699]
[1732850428259,0.26071941,3588.2,3588.1,2.78699]
[1732850428796,0.26071941,3588.2,3587.9,2.78713]
[1732850428956,0.26071941,3588.1,3588.0,2.78705]
[1732850429358,0.26071941,3588.1,3588.0,3.59575]
[1732850431593,0.7632,3588.8,3588.1,2.78697]
[1732850431811,0.41721607,3588.7,3588.4,2.78675]
[1732850431990,0.67797492,3588.6,3588.4,2.78675]
[1732850432296,0.67797492,3588.5,3588.4,2.78675]
[1732850433073,0.26075885,3588.5,3588.4,2.78675]
[1732850433265,0.67797492,3588.5,3588.4,2.78675]
[1732850434803,0.67797492,3588.5,3588.4,0.0670724]
[1732850435198,0.67797492,3588.5,3588.2,2.78688]
[1732850435538,0.67797492,3588.4,3588.3,0.06707726]
[1732850435847,1.49227492,3588.4,3587.8,2.78715]
[1732850436127,0.8143,3588.4,3587.8,5.5743]
[1732850436336,0.67825413,3588.3,3587.9,0.06709667]
[1732850436531,0.67825413,3588.2,3587.9,2.85423667]
[1732850436829,0.26086697,3588.1,3587.9,2.85423667]
[1732850437035,0.26086697,3588.0,3587.9,2.85423667]
[1732850438735,0.8143,3588.4,3587.9,2.85423667]
[1732850439036,0.26093003,3588.0,3587.9,2.85423667]
[1732850439262,0.26093003,3588.0,3587.9,3.41839034]
[1732850439765,0.67841808,3588.0,3587.9,0.06709667]
[1732850439896,1.49711808,3588.0,3587.9,0.06709667]
[1732850440408,1.49711808,3588.0,3587.5,2.78743]
[1732850440610,0.67841808,3587.9,3587.5,2.78743]
[1732850440832,0.67841808,3587.8,3587.6,0.06720493]
[1732850441121,0.67841808,3587.7,3587.6,0.06720493]
[1732850441641,0.67841808,3587.7,3587.3,2.78758]
[1732850441840,0.8187,3588.0,3587.6,0.06720493]
[1732850442017,0.67865565,3587.9,3587.4,2.78752]
[1732850442351,0.67865565,3587.8,3587.5,0.06720979]
[1732850442534,0.67865565,3587.7,3587.3,2.7876]
[1732850442836,0.67865565,3587.6,3587.3,2.7876]
[1732850442998,0.2610214,3587.5,3587.3,2.7876]
[1732850443198,0.2610214,3587.4,3587.3,2.7876]
[1732850443939,0.2610214,3587.4,3587.1,2.78774]
[1732850444098,0.2610214,3587.3,3586.8,2.78797]
[1732850444301,0.2610214,3587.2,3586.9,2.7879]
[1732850444496,0.2610214,3587.1,3586.9,2.7879]
[1732850444737,0.2610214,3587.0,3586.9,2.7879]
[1732850445146,0.2610214,3587.0,3586.7,3.34023127]
[1732850445306,0.8166,3587.4,3586.7,3.34023127]
[1732850445502,0.6785297,3587.3,3586.7,3.34023127]